bitfinex/quotes_BTCUSD_20220731
["timestamp","ask_amount","ask_price","bid_price","bid_amount"]
[1659259734048,0.304214,23678.0,23674.0,0.5]
[1659259734265,0.213701,23677.0,23674.0,0.5]
[1659259734478,0.59125733,23679.0,23675.0,0.00448382]
[1659259734715,0.304214,23678.0,23675.0,0.00448382]
[1659259735161,0.213701,23677.0,23675.0,0.00448382]
[1659259735382,0.047,23678.0,23675.0,0.00448382]
[1659259735595,0.34307162,23677.0,23675.0,0.00448382]
[1659259735840,0.34307162,23677.0,23674.0,0.4]
[1659259735841,0.03885762,23677.0,23674.0,0.4]
[1659259736049,0.047,23678.0,23675.0,0.00448382]
[1659259736278,0.351214,23678.0,23674.0,0.4]
[1659259736504,0.213701,23677.0,23674.0,0.4]
[1659259736727,0.54725733,23679.0,23674.0,0.4]
[1659259736949,0.14,23679.0,23678.0,0.1]
[1659259737215,0.14,23679.0,23678.0,0.2]
[1659259738099,0.14,23679.0,23676.0,0.51104]
[1659259738313,0.14,23679.0,23676.0,0.96829733]
[1659259738563,0.14,23679.0,23677.0,0.05]
[1659259738793,0.14,23679.0,23678.0,0.65]
[1659259739002,0.14,23679.0,23678.0,0.15]
[1659259739441,0.219,23679.0,23678.0,0.15]
[1659259740336,0.219,23679.0,23678.0,0.15013259]
[1659259740777,0.14,23679.0,23678.0,0.15013259]
[1659259741489,0.219,23679.0,23678.0,0.15013259]
[1659259742138,0.21888199,23679.0,23678.0,0.15013259]
[1659259742812,0.13988199,23679.0,23678.0,0.15013259]
[1659259743034,0.13988199,23679.0,23678.0,0.45434659]
[1659259743256,0.13988199,23679.0,23678.0,0.46252761]
[1659259743473,0.13988199,23679.0,23678.0,0.44327472]
[1659259743715,0.13988199,23679.0,23678.0,0.41252761]
[1659259744376,0.13988199,23679.0,23678.0,0.11252761]
[1659259745311,0.21888199,23679.0,23678.0,0.11252761]
[1659259745752,0.29788199,23679.0,23678.0,0.11252761]
[1659259746187,0.29788199,23679.0,23678.0,0.16252761]
[1659259746649,0.13988199,23679.0,23678.0,0.16252761]
[1659259747086,0.13988199,23679.0,23678.0,0.16239502]
[1659259747727,0.13988199,23679.0,23678.0,0.21239502]
[1659259747945,0.13988199,23679.0,23678.0,0.16239502]
[1659259748167,0.13988199,23679.0,23678.0,0.11239502]
[1659259748833,0.21888199,23679.0,23678.0,0.16239502]
[1659259749314,0.21888199,23679.0,23678.0,0.11239502]
[1659259749981,0.13988199,23679.0,23678.0,0.11239502]
[1659259750205,0.21888199,23679.0,23678.0,0.16239502]
[1659259750976,0.21888199,23679.0,23678.0,0.46660902]
[1659259751203,0.21888199,23679.0,23678.0,0.76660902]
[1659259751434,0.13988199,23679.0,23678.0,0.76660902]
[1659259751662,0.21888199,23679.0,23678.0,0.46239502]
[1659259752089,0.21888199,23679.0,23678.0,0.76660902]
[1659259752299,0.21888199,23679.0,23678.0,0.46239502]
[1659259752523,0.21888199,23679.0,23678.0,0.16239502]
[1659259752787,0.21888199,23679.0,23678.0,0.11239502]
[1659259753016,0.13988199,23679.0,23678.0,0.16239502]
[1659259753437,0.21888199,23679.0,23678.0,0.16239502]
[1659259753638,0.21888199,23679.0,23678.0,0.11239502]
[1659259754727,0.13988199,23679.0,23678.0,0.11239502]
[1659259755363,0.21888199,23679.0,23678.0,0.11239502]
[1659259756890,0.13988199,23679.0,23678.0,0.11239502]
[1659259757299,0.21888199,23679.0,23678.0,0.11239502]
[1659259758606,0.13988199,23679.0,23678.0,0.11239502]
[1659259760394,0.21888199,23679.0,23678.0,0.11239502]
[1659259760827,0.21888199,23679.0,23678.0,0.21239502]
[1659259761262,0.21888199,23679.0,23678.0,0.11239502]
[1659259761931,0.21888199,23679.0,23678.0,0.16239502]
[1659259762591,0.13988199,23679.0,23678.0,0.16239502]
[1659259763023,0.13988199,23679.0,23678.0,0.21239502]
[1659259763255,0.59746888,23691.0,23678.0,1.22386635]
[1659259763473,0.59746888,23691.0,23683.0,0.1]
[1659259763474,0.40725733,23690.0,23683.0,0.1]
[1659259763721,0.59746888,23691.0,23689.0,0.1]
[1659259763953,1.00472621,23691.0,23687.0,0.255022]
[1659259764200,0.03467316,23690.0,23687.0,0.255022]
[1659259764430,1.00472621,23691.0,23687.0,0.255022]
[1659259764431,0.304214,23689.0,23687.0,0.255022]
[1659259764637,1.00472621,23691.0,23687.0,0.255022]
[1659259764860,0.304214,23690.0,23687.0,0.255022]
[1659259765082,1.00472621,23691.0,23687.0,0.355022]
[1659259765083,0.213701,23689.0,23687.0,0.355022]
[1659259765306,1.00472621,23691.0,23688.0,0.35]
[1659259765307,1.08372621,23691.0,23688.0,0.35]
[1659259766180,1.08372621,23691.0,23688.0,0.3]
[1659259766395,1.12258383,23691.0,23687.0,0.255022]
[1659259766676,0.304214,23690.0,23687.0,0.255022]
[1659259766892,0.213701,23689.0,23688.0,0.00448382]
[1659259767108,1.04358383,23691.0,23687.0,0.255022]
[1659259767321,0.79047133,23690.0,23687.0,0.255022]
[1659259767587,0.79047133,23690.0,23687.0,0.04407]
[1659259767588,0.85,23688.0,23687.0,0.04407]
[1659259767801,1.06147133,23688.0,23687.0,0.04407]
[1659259768082,0.304214,23688.0,23687.0,0.04407]
[1659259768509,0.878,23690.0,23687.0,0.04407]
[1659259768510,0.213701,23689.0,23687.0,0.04407]
[1659259768716,0.304214,23688.0,23687.0,0.04407]
[1659259768935,0.33888716,23688.0,23687.0,0.04407]
[1659259769138,0.33888716,23688.0,23681.0,0.5787]
[1659259769406,0.10767316,23688.0,23682.0,0.40725733]
[1659259769601,0.10767316,23688.0,23683.0,0.3]
[1659259769818,0.10767316,23688.0,23683.0,0.70725733]
[1659259770033,0.10767316,23688.0,23683.0,0.40725733]
[1659259770260,1.01147133,23687.0,23681.0,0.3988]
[1659259770479,1.01147133,23687.0,23678.0,0.40879502]
[1659259770480,0.92095833,23686.0,23678.0,0.40879502]
[1659259770704,0.40725733,23685.0,23678.0,0.80365733]
[1659259770938,0.40725733,23685.0,23677.0,0.01275127]
[1659259770939,0.33163,23684.0,23677.0,0.01275127]
[1659259771176,0.40725733,23683.0,23675.0,1.193563]
[1659259771395,0.40725733,23683.0,23678.0,0.05]
[1659259771604,0.40725733,23683.0,23676.0,0.40725733]
[1659259771605,0.304214,23682.0,23676.0,0.40725733]
[1659259771819,0.40725733,23683.0,23676.0,0.40725733]
[1659259772117,0.304214,23682.0,23676.0,0.40725733]
[1659259772337,0.40725733,23683.0,23676.0,0.41990081]
[1659259772545,0.40725733,23683.0,23677.0,0.304214]
[1659259772759,0.40725733,23683.0,23678.0,0.515251]
[1659259772988,0.40725733,23683.0,23678.0,0.211037]
[1659259773424,0.44525733,23683.0,23678.0,0.261037]
[1659259773635,0.44525733,23683.0,23678.0,0.211037]
[1659259773841,0.304214,23682.0,23678.0,0.211037]
[1659259774058,0.304214,23681.0,23678.0,0.211037]
[1659259774275,0.44525733,23683.0,23678.0,0.211037]
[1659259774505,0.304214,23682.0,23678.0,0.211037]
[1659259774712,0.14,23682.0,23678.0,0.211037]
[1659259775166,0.304214,23681.0,23679.0,0.00033376]
[1659259775388,0.179,23682.0,23679.0,0.00033376]
[1659259775616,0.34307162,23681.0,23678.0,0.211037]
[1659259776041,0.34307162,23681.0,23677.0,0.3]
[1659259776042,0.40725733,23680.0,23676.0,0.3]
[1659259776266,0.40725733,23680.0,23677.0,0.00033379]
[1659259776475,0.40725733,23680.0,23676.0,0.3]
[1659259777203,0.40725733,23680.0,23677.0,0.05]
[1659259777427,0.44525733,23680.0,23677.0,0.3]
[1659259777889,0.44525733,23680.0,23677.0,0.30033379]
[1659259778323,0.44525733,23680.0,23677.0,0.00033379]
[1659259778540,0.44525733,23680.0,23676.0,0.3]
[1659259778754,0.40725733,23680.0,23676.0,0.3]
[1659259778967,0.40725733,23680.0,23677.0,0.00033379]
[1659259779429,0.44525733,23680.0,23677.0,0.00033379]
[1659259780822,0.40725733,23680.0,23677.0,0.00033379]
[1659259781291,0.03885762,23679.0,23676.0,0.3]
[1659259781507,0.44525733,23680.0,23677.0,0.05]
[1659259781734,0.44525733,23680.0,23676.0,0.3]
[1659259781961,0.44525733,23680.0,23676.0,0.35]
[1659259782255,0.44525733,23680.0,23676.0,0.4]
[1659259782471,0.44525733,23680.0,23676.0,0.35]
[1659259782696,0.44611495,23679.0,23676.0,0.3]
[1659259782909,0.40725733,23679.0,23676.0,0.3]
[1659259783359,0.44525733,23679.0,23676.0,0.3]
[1659259783654,0.44525733,23679.0,23676.0,0.30448382]
[1659259784323,0.44525733,23679.0,23676.0,0.30438291]
[1659259785253,0.40725733,23679.0,23676.0,0.30438291]
[1659259786628,0.40725733,23679.0,23677.0,0.304214]
[1659259786851,0.44525733,23679.0,23676.0,0.40438291]
[1659259787082,0.44525733,23679.0,23677.0,0.304214]
[1659259787311,0.44525733,23679.0,23678.0,0.3]
[1659259787798,0.44525733,23679.0,23676.0,0.3]
[1659259787799,0.52211495,23679.0,23676.0,0.3]
[1659259788015,0.44611495,23679.0,23676.0,0.3]
[1659259788236,0.44611495,23679.0,23677.0,0.05]
[1659259788460,0.40725733,23679.0,23676.0,0.3]
[1659259788708,0.44611495,23679.0,23676.0,0.3]
[1659259789375,0.44944179,23679.0,23676.0,0.3]
[1659259789600,0.44525733,23679.0,23676.0,0.3]
[1659259790082,0.40725733,23679.0,23676.0,0.3]
[1659259791248,0.40725733,23679.0,23677.0,0.00032889]
[1659259791482,0.48411495,23679.0,23674.0,0.211076]
[1659259792667,0.44525733,23679.0,23674.0,0.611076]
[1659259792893,0.40725733,23679.0,23674.0,0.611076]
[1659259793562,0.038,23679.0,23674.0,0.62371948]
[1659259793811,0.038,23679.0,23675.0,0.304214]
[1659259794038,0.038,23679.0,23676.0,0.3503289]
[1659259794266,0.038,23679.0,23676.0,0.1003289]
[1659259794483,0.038,23679.0,23677.0,0.3]
[1659259794694,0.40725733,23681.0,23677.0,0.35]
[1659259795182,0.2868,23690.0,23678.0,0.565252]
[1659259795183,0.5762,23687.0,23678.0,0.565252]
[1659259795404,0.039,23681.0,23679.0,0.3]
[1659259795639,0.039,23681.0,23678.0,0.261038]
[1659259795640,0.07785762,23681.0,23678.0,0.261038]
[1659259795861,0.039,23681.0,23679.0,0.00448382]
[1659259796077,0.039,23681.0,23678.0,0.211038]
[1659259796321,0.40725733,23680.0,23677.0,0.31264348]
[1659259796575,0.40725733,23680.0,23675.0,0.3]
[1659259796794,0.03885762,23679.0,23675.0,0.4]
[1659259797012,0.03885762,23679.0,23675.0,0.01264348]
[1659259797226,0.03885762,23679.0,23674.0,0.31659]
[1659259797454,0.08285762,23679.0,23674.0,0.31659]
[1659259798424,0.08285762,23679.0,23675.0,0.33194516]
[1659259798649,0.08285762,23679.0,23676.0,0.00092258]
[1659259798902,0.40725733,23678.0,23674.0,0.211076]
[1659259799821,0.49511495,23679.0,23675.0,0.00092262]
[1659259800046,0.45625733,23679.0,23675.0,0.00092262]
[1659259800735,0.40725733,23679.0,23675.0,0.00092262]
[1659259801414,0.40725733,23679.0,23676.0,0.05]
[1659259801415,0.45725733,23679.0,23676.0,0.05]
[1659259801705,0.45725733,23679.0,23675.0,0.00092262]
[1659259802147,0.45725733,23679.0,23674.0,0.511076]
[1659259802598,0.70725733,23678.0,23671.0,0.3912517]
[1659259802881,0.70725733,23678.0,23671.0,0.0125517]
[1659259802882,0.40725733,23677.0,23671.0,0.0125517]
[1659259803125,1.45707133,23676.0,23671.0,0.0125517]
[1659259803354,1.45707133,23676.0,23666.0,0.872346]
[1659259803355,0.05,23672.0,23666.0,0.872346]
[1659259803582,0.40725733,23671.0,23666.0,0.872346]
[1659259803800,0.40725733,23671.0,23666.0,0.88503214]
[1659259804052,0.40725733,23671.0,23667.0,0.01264348]
[1659259804284,0.40725733,23671.0,23668.0,0.30513689]
[1659259804527,0.5191,23678.0,23669.0,0.40725733]
[1659259804751,0.5191,23678.0,23671.0,0.211083]
[1659259804752,0.40725733,23677.0,23671.0,0.211083]
[1659259804999,0.40725733,23678.0,23671.0,0.61834033]
[1659259805229,0.7761,23682.0,23672.0,0.71147133]
[1659259805520,0.037,23677.0,23675.0,0.211056]
[1659259805733,0.48311495,23677.0,23676.0,0.304214]
[1659259805968,0.48311495,23677.0,23675.0,0.211056]
[1659259806421,0.44425733,23677.0,23675.0,0.22369948]
[1659259806896,0.40725733,23677.0,23675.0,0.22369948]
[1659259807354,0.40725733,23677.0,23676.0,0.05]
[1659259807571,0.48311495,23677.0,23675.0,0.22369948]
[1659259807800,0.44425733,23677.0,23675.0,0.22369948]
[1659259808756,0.40725733,23677.0,23675.0,0.27369948]
[1659259809004,0.40725733,23677.0,23675.0,0.32369948]
[1659259809249,0.40725733,23677.0,23676.0,0.3]
[1659259809475,0.44425733,23677.0,23676.0,0.3]
[1659259809680,0.44425733,23677.0,23676.0,0.31264348]
[1659259810106,0.44425733,23677.0,23676.0,0.31380502]
[1659259810555,0.44425733,23677.0,23676.0,0.31264348]
[1659259810797,0.40725733,23677.0,23676.0,0.31264348]
[1659259811057,0.40725733,23677.0,23676.0,0.31380502]
[1659259811270,0.40725733,23677.0,23676.0,0.01264348]
[1659259811513,0.44625733,23677.0,23676.0,0.01264348]
[1659259812632,0.44625733,23677.0,23676.0,0.31264348]
[1659259812864,0.40725733,23677.0,23676.0,0.31264348]
[1659259813408,0.44625733,23677.0,23676.0,0.31264348]
[1659259813861,0.039,23677.0,23676.0,0.36264348]
[1659259814097,0.039,23677.0,23676.0,0.41264348]
[1659259814310,0.039,23677.0,23676.0,0.71685748]
[1659259814578,0.04695062,23677.0,23676.0,0.71685748]
[1659259814757,0.00795062,23677.0,23676.0,0.41264348]
[1659259815192,0.00795062,23677.0,23676.0,0.36264348]
[1659259815425,0.04695062,23677.0,23676.0,0.01264348]
[1659259816834,0.00795062,23677.0,23676.0,0.01264348]
[1659259817053,0.00795062,23677.0,23676.0,0.31264348]
[1659259817508,0.04595062,23677.0,23676.0,0.31264348]
[1659259817953,0.04595062,23677.0,23676.0,0.3]
[1659259818878,0.00795062,23677.0,23676.0,0.3]
[1659259819101,0.0078381,23677.0,23676.0,0.30116154]
[1659259819542,0.0458381,23677.0,23676.0,0.30116154]
[1659259819975,0.0458381,23677.0,23676.0,0.31380502]
[1659259821384,0.0078381,23677.0,23676.0,0.31380502]
[1659259821521,0.57088989,23677.0,23676.0,0.01264348]
[1659259821764,0.91310389,23677.0,23673.0,0.5612]
[1659259822019,0.60888989,23677.0,23673.0,0.5612]
[1659259822189,0.60888989,23677.0,23673.0,0.57384348]
[1659259822335,0.60888989,23677.0,23673.0,0.5612]
[1659259822539,0.60888989,23677.0,23674.0,0.00116164]
[1659259822944,0.55875543,23677.0,23673.0,0.57384348]
[1659259823170,0.52075543,23677.0,23673.0,0.57384348]
[1659259823409,0.55875543,23677.0,23673.0,0.57384348]
[1659259823606,0.55875543,23677.0,23674.0,0.35]
[1659259823838,0.56293989,23677.0,23674.0,0.35116164]
[1659259824490,0.55875543,23677.0,23674.0,0.35116164]
[1659259824731,0.52075543,23677.0,23674.0,0.35116164]
[1659259825398,0.55875543,23677.0,23674.0,0.57487512]
[1659259826299,0.55875543,23677.0,23675.0,0.304214]
[1659259826513,0.03885762,23676.0,23675.0,0.05]
[1659259826733,0.41509543,23677.0,23674.0,0.57371348]
[1659259827416,0.03885762,23676.0,23674.0,0.52371348]
[1659259827650,0.0078381,23675.0,23674.0,0.52371348]
[1659259828286,0.0078381,23675.0,23674.0,0.51107]
[1659259828526,0.0078381,23675.0,23674.0,0.56107]
[1659259829514,0.0468381,23675.0,23674.0,0.56107]
[1659259830159,0.0468381,23675.0,23674.0,0.56223164]
[1659259830817,0.0078381,23675.0,23674.0,0.56223164]
[1659259831038,0.0078381,23675.0,23674.0,1.16644564]
[1659259831270,0.0078381,23675.0,23674.0,0.86644564]
[1659259831503,0.0438381,23675.0,23674.0,0.86644564]
[1659259832867,0.0078381,23675.0,23674.0,0.86644564]
[1659259833085,0.0078381,23675.0,23674.0,0.81644564]
[1659259833297,0.0078381,23675.0,23674.0,0.56107]
[1659259833517,0.0138381,23675.0,23674.0,0.56107]
[1659259834188,0.0138381,23675.0,23674.0,0.865284]
[1659259834848,0.0078381,23675.0,23674.0,0.865284]
[1659259835527,0.0138381,23675.0,23674.0,0.865284]
[1659259836922,0.0078381,23675.0,23674.0,0.865284]
[1659259837465,0.0138381,23675.0,23674.0,0.865284]
[1659259838734,0.0078381,23675.0,23674.0,0.865284]
[1659259839496,0.0138381,23675.0,23674.0,0.865284]
[1659259839865,0.0138381,23675.0,23674.0,0.56107]
[1659259840183,0.0138381,23675.0,23674.0,0.865284]
[1659259840748,0.0078381,23675.0,23674.0,0.865284]
[1659259841540,0.0138381,23675.0,23674.0,0.865284]
[1659259841960,0.01376663,23675.0,23674.0,0.515284]
[1659259842189,0.01376663,23675.0,23674.0,0.21107]
[1659259842855,0.00776663,23675.0,23674.0,0.21107]
[1659259843074,0.00776663,23675.0,23674.0,0.515284]
[1659259843315,0.00776663,23675.0,23674.0,0.61107]
[1659259843536,0.04876663,23675.0,23674.0,0.61107]
[1659259844063,0.04876663,23675.0,23673.0,1.16936169]
[1659259844275,0.04876663,23675.0,23673.0,0.61236169]
[1659259844718,0.00776663,23675.0,23673.0,0.61236169]
[1659259845155,0.40725733,23674.0,23671.0,0.3958]
[1659259845386,0.40725733,23674.0,23670.0,0.211106]
[1659259845629,0.40725733,23674.0,23666.0,1.29056814]
[1659259845851,0.40725733,23674.0,23666.0,1.69782547]
[1659259846081,0.00776663,23671.0,23666.0,1.59228447]
[1659259846296,0.41502396,23671.0,23667.0,0.304214]
[1659259846553,0.41502396,23671.0,23668.0,0.304214]
[1659259846774,0.41502396,23671.0,23666.0,1.18502714]
[1659259846987,0.41502396,23671.0,23667.0,0.304214]
[1659259847214,0.41502396,23671.0,23668.0,0.304214]
[1659259847436,0.45302396,23671.0,23666.0,1.18502714]
[1659259847669,0.45302396,23671.0,23667.0,0.304214]
[1659259847943,0.45302396,23671.0,23666.0,1.48502714]
[1659259848628,0.45302396,23671.0,23666.0,1.53502714]
[1659259848841,0.41502396,23671.0,23667.0,0.304214]
[1659259849116,0.41502396,23671.0,23668.0,0.3]
[1659259849323,0.41502396,23671.0,23670.0,0.1]
[1659259849324,0.00776663,23671.0,23670.0,0.1]
[1659259849552,0.04976663,23671.0,23670.0,0.915319]
[1659259849769,0.04976663,23671.0,23670.0,1.015319]
[1659259850009,0.04976663,23671.0,23670.0,1.02796248]
[1659259850458,0.04976663,23671.0,23670.0,0.97796248]
[1659259850682,0.00776663,23671.0,23670.0,0.92796248]
[1659259851357,0.04876663,23671.0,23670.0,0.92796248]
[1659259852316,0.04876663,23671.0,23670.0,0.92829146]
[1659259852552,0.45602396,23671.0,23670.0,0.304214]
[1659259852787,0.45602396,23671.0,23666.0,0.97738614]
[1659259853000,0.45602396,23671.0,23667.0,0.304214]
[1659259853221,0.41502396,23671.0,23668.0,0.304214]
[1659259853471,0.45602396,23671.0,23669.0,0.304214]
[1659259853698,0.45602396,23671.0,23670.0,0.304214]
[1659259853908,0.45602396,23671.0,23669.0,0.05]
[1659259854120,0.45602396,23671.0,23670.0,0.304214]
[1659259854363,0.45602396,23671.0,23670.0,0.30032898]
[1659259854575,0.45602396,23671.0,23669.0,0.01264348]
[1659259854791,0.41502396,23671.0,23667.0,0.304214]
[1659259855026,0.41502396,23671.0,23666.0,0.61218614]
[1659259855246,0.41502396,23671.0,23667.0,0.304214]
[1659259855475,0.40725733,23670.0,23668.0,0.30454301]
[1659259855759,0.40725733,23670.0,23666.0,0.01268614]
[1659259855760,0.44611495,23670.0,23666.0,0.01268614]
[1659259855976,0.45602396,23671.0,23667.0,0.304214]
[1659259856194,0.44825733,23671.0,23666.0,0.30388137]
[1659259856419,0.00776663,23668.0,23666.0,0.01264348]
[1659259856642,0.00776663,23668.0,23667.0,0.30869782]
[1659259856862,0.00776663,23668.0,23667.0,0.35869782]
[1659259857108,0.00776663,23668.0,23667.0,0.7213413]
[1659259857337,0.00776663,23668.0,23667.0,0.01264348]
[1659259857561,0.01676663,23668.0,23667.0,0.31685748]
[1659259858458,0.01676663,23668.0,23667.0,0.36685748]
[1659259858688,0.01676663,23668.0,23667.0,0.66685748]
[1659259858906,0.00776663,23668.0,23667.0,0.66685748]
[1659259859135,0.00776663,23668.0,23667.0,0.41264348]
[1659259859358,0.00776663,23668.0,23667.0,0.36264348]
[1659259859718,0.01676663,23668.0,23667.0,0.61886619]
[1659259859951,0.01676663,23668.0,23667.0,0.41886619]
[1659259860172,0.01676663,23668.0,23667.0,0.71886619]
[1659259861076,0.00776663,23668.0,23667.0,0.71886619]
[1659259861316,0.00776663,23668.0,23667.0,0.304214]
[1659259861539,0.01676663,23668.0,23667.0,0.304214]
[1659259862462,0.01676663,23668.0,23667.0,0.71685748]
[1659259862912,0.00776663,23668.0,23667.0,0.71685748]
[1659259863405,0.00776663,23668.0,23667.0,1.26185748]
[1659259863603,0.00866816,23668.0,23667.0,1.66911481]
[1659259864275,0.00866816,23668.0,23667.0,1.26911481]
[1659259865408,0.01966816,23668.0,23667.0,1.61911481]
[1659259865645,0.01966816,23668.0,23667.0,1.66911481]
[1659259866795,0.00766816,23668.0,23667.0,1.66911481]
[1659259867541,0.01966816,23668.0,23667.0,1.66911481]
[1659259867767,0.01966816,23668.0,23667.0,1.56702272]
[1659259868428,0.01966816,23668.0,23667.0,0.25212191]
[1659259869334,0.00766816,23668.0,23667.0,0.25212191]
[1659259869555,0.01066816,23668.0,23667.0,0.25223796]
[1659259870528,0.01066816,23668.0,23667.0,0.26488144]
[1659259870760,0.00766816,23668.0,23667.0,0.66488144]
[1659259870985,0.00766816,23668.0,23667.0,0.95602223]
[1659259871419,0.01066816,23668.0,23667.0,0.95602223]
[1659259872372,0.01066816,23668.0,23667.0,0.66488144]
[1659259872596,0.01066816,23668.0,23667.0,0.61488144]
[1659259872830,0.00766816,23668.0,23667.0,0.60212191]
[1659259873519,0.01066816,23668.0,23667.0,0.65212191]
[1659259873766,0.01066816,23668.0,23667.0,0.94334013]
[1659259874217,0.01066816,23668.0,23667.0,0.95598361]
[1659259874965,0.00766816,23668.0,23667.0,0.95598361]
[1659259875423,0.01066816,23668.0,23667.0,0.95598361]
[1659259875856,0.01066816,23668.0,23667.0,0.95641737]
[1659259876745,0.00766816,23668.0,23667.0,0.95641737]
[1659259879328,0.06246816,23668.0,23667.0,0.95641737]
[1659259879552,0.46972549,23668.0,23667.0,0.55641737]
[1659259879804,0.46972549,23668.0,23667.0,0.25212191]
[1659259879805,0.06246816,23668.0,23667.0,0.25212191]
[1659259880287,0.07446816,23668.0,23667.0,0.25212191]
[1659259880951,0.07446816,23668.0,23667.0,0.55212191]
[1659259881168,0.07446816,23668.0,23667.0,0.60212191]
[1659259881434,0.08646816,23668.0,23667.0,0.65212191]
[1659259881665,0.10132578,23668.0,23667.0,0.25212191]
[1659259881886,0.06246816,23668.0,23667.0,0.25212191]
[1659259882331,0.07446816,23668.0,23667.0,0.25212191]
[1659259883283,0.07446816,23668.0,23667.0,0.25255567]
[1659259883508,0.07446816,23668.0,23667.0,0.65255567]
[1659259883729,0.06246816,23668.0,23667.0,0.94377758]
[1659259884402,0.10646816,23668.0,23667.0,0.94377758]
[1659259884641,0.10646816,23668.0,23667.0,0.55212191]
[1659259885089,0.10646816,23668.0,23667.0,0.65212191]
[1659259885430,0.10646816,23668.0,23667.0,0.60212191]
[1659259885660,0.10646816,23668.0,23667.0,0.65212191]
[1659259885884,0.06246816,23668.0,23667.0,0.60212191]
[1659259886098,0.06246816,23668.0,23667.0,0.35]
[1659259886332,0.06246816,23668.0,23667.0,0.654351]
[1659259886584,0.10546816,23668.0,23667.0,0.604351]
[1659259886807,0.10546816,23668.0,23667.0,0.654351]
[1659259887041,0.10546816,23668.0,23667.0,0.704351]
[1659259887506,0.10546816,23668.0,23667.0,0.71699448]
[1659259888183,0.06246816,23668.0,23667.0,0.71699448]
[1659259888409,0.07346816,23668.0,23667.0,0.71699448]
[1659259889559,0.07346816,23668.0,23667.0,1.01699448]
[1659259889785,0.06246816,23668.0,23667.0,1.01699448]
[1659259890024,0.06246816,23668.0,23667.0,0.71699448]
[1659259890252,0.06237787,23668.0,23667.0,0.71699448]
[1659259890497,0.07337787,23668.0,23667.0,0.704351]
[1659259891878,0.06237787,23668.0,23667.0,0.704351]
[1659259893822,0.07337787,23668.0,23667.0,0.704351]
[1659259894716,0.07337787,23668.0,23667.0,0.654351]
[1659259894941,0.07337787,23668.0,23667.0,0.304351]
[1659259895163,0.06237787,23668.0,23667.0,0.304351]
[1659259895412,0.08237787,23668.0,23667.0,0.304351]
[1659259896123,0.08237787,23668.0,23667.0,0.354351]
[1659259896354,0.10237787,23668.0,23667.0,0.704351]
[1659259896581,0.08237787,23668.0,23667.0,0.704351]
[1659259897292,0.08237787,23668.0,23667.0,0.304351]
[1659259897523,0.4896352,23668.0,23667.0,0.304351]
[1659259897736,0.4696352,23668.0,23667.0,0.304351]
[1659259898283,0.06237787,23668.0,23667.0,0.30478476]
[1659259898501,0.10637787,23668.0,23667.0,0.30478476]
[1659259898955,0.10637787,23668.0,23667.0,0.65478476]
[1659259899179,0.10637787,23668.0,23667.0,0.70478476]
[1659259899865,0.10123549,23668.0,23667.0,0.304351]
[1659259900102,0.06237787,23668.0,23667.0,0.304351]
[1659259900567,0.07337787,23668.0,23667.0,0.304351]
[1659259900793,0.07337787,23668.0,23666.0,0.304351]
[1659259901027,0.07337787,23668.0,23667.0,0.304351]
[1659259901480,0.07337787,23668.0,23667.0,0.604351]
[1659259901721,0.06237787,23668.0,23667.0,0.604351]
[1659259901961,0.50849282,23668.0,23667.0,0.304351]
[1659259902172,0.50849282,23668.0,23665.0,0.01385163]
[1659259902395,0.54549282,23668.0,23665.0,0.01385163]
[1659259903309,0.09937787,23668.0,23665.0,0.02692891]
[1659259903527,0.09937787,23668.0,23667.0,0.45]
[1659259903751,0.06237787,23668.0,23667.0,0.604351]
[1659259903979,0.06237787,23668.0,23667.0,0.61699448]
[1659259904447,0.10737787,23668.0,23667.0,0.61699448]
[1659259905869,0.05737787,23668.0,23667.0,0.71699448]
[1659259906094,0.05737787,23668.0,23667.0,1.01699448]
[1659259906556,0.10237787,23668.0,23667.0,1.42425181]
[1659259907233,0.10237787,23668.0,23667.0,1.43836889]
[1659259907455,0.10237787,23668.0,23667.0,1.48836889]
[1659259907685,0.05737787,23668.0,23667.0,1.48836889]
[1659259907930,0.05737787,23668.0,23667.0,2.04046889]
[1659259908156,0.05737787,23668.0,23667.0,2.9990033]
[1659259909552,0.05737787,23668.0,23667.0,2.6990033]
[1659259911714,0.05737787,23668.0,23667.0,1.74046889]
[1659259911943,0.05737787,23668.0,23667.0,0.71160833]
[1659259913322,0.4646352,23668.0,23665.0,0.01385163]
[1659259913554,0.40725733,23667.0,23665.0,0.01385163]
[1659259913770,0.05,23666.0,23665.0,0.01385163]
[1659259914443,0.11457787,23666.0,23665.0,0.01385163]
[1659259914957,0.06457787,23666.0,23665.0,0.01385163]
[1659259915179,0.06457787,23666.0,23665.0,0.31820263]
[1659259915633,0.06457787,23666.0,23665.0,1.89911959]
[1659259915863,0.00257787,23666.0,23665.0,2.54035011]
[1659259916351,0.00257787,23666.0,23665.0,2.59035011]
[1659259916577,0.00257787,23666.0,23665.0,2.60446734]
[1659259917043,0.00257787,23666.0,23665.0,0.78231986]
[1659259917265,0.00257787,23666.0,23665.0,0.71820263]
[1659259917526,0.00257787,23666.0,23665.0,0.73084611]
[1659259918834,0.15418787,23666.0,23665.0,0.31820263]
[1659259919037,0.15418787,23666.0,23665.0,0.01617349]
[1659259919262,0.15418787,23666.0,23665.0,0.01385163]
[1659259919481,0.10823787,23666.0,23665.0,0.01385163]
[1659259920343,0.15023787,23666.0,23665.0,0.01385163]
[1659259920793,0.15023787,23666.0,23665.0,0.31385163]
[1659259921028,0.04457787,23666.0,23665.0,0.31385163]
[1659259922267,0.00257787,23666.0,23665.0,0.31385163]
[1659259922491,0.18909549,23666.0,23665.0,0.31385163]
[1659259922757,0.15023787,23666.0,23665.0,0.01385163]
[1659259922973,0.15023787,23666.0,23665.0,0.31385163]
[1659259923462,0.59216836,23666.0,23665.0,0.31385163]
[1659259923705,0.59216836,23666.0,23665.0,0.001]
[1659259923706,0.5154952,23666.0,23665.0,0.001]
[1659259923920,0.8198462,23666.0,23665.0,0.001]
[1659259924411,0.89851936,23666.0,23665.0,0.001]
[1659259925098,1.24851936,23666.0,23665.0,0.001]
[1659259925611,1.69411936,23666.0,23665.0,0.001]
[1659259925845,1.65011936,23666.0,23665.0,0.001]
[1659259926302,2.15430382,23666.0,23665.0,0.001]
[1659259926533,1.69930382,23666.0,23665.0,0.001]
[1659259926761,2.19930382,23666.0,23665.0,0.001]
[1659259927441,1.39930382,23666.0,23665.0,0.001]
[1659259927943,1.89930382,23666.0,23665.0,0.001]
[1659259929064,1.39930382,23666.0,23665.0,0.001]
[1659259929749,1.35430382,23666.0,23665.0,0.001]